Workbook

Sheet 0004
AJ1: 事業番号 | AS1: =IF(OR(AQ1=" ", AQ1=""), "", "-") ->  | AT1: 4
A2: 29 | AI2: （ | AJ2: 人事院 | AX2: ）
A3: 事業名 | G3: 研修の実施 | Y3: 担当部局庁 | AE3: 公務員研修所 | AQ3: 作成責任者
A4: 事業開始年度 | G4: 昭和38年度 | M4: 事業終了 （予定）年度 | S4: 終了予定なし | Y4: 担当課室 | AE4: 教務部 | AQ4: 部長 箕浦 正人
A5: 会計区分 | G5: 一般会計
A6: 根拠法令 （具体的な 条項も記載） | G6: 国家公務員法第70条の6第１項第１号、人事院規則10―14 | Y6: 関係する計画、通知等 | AE6: 平成28年度研修実施計画
A7: 主要政策・施策 | G7: － | Y7: 主要経費 | AE7: その他の事項経費
A8: 事業の目的 （目指す姿を簡潔に。3行程度以内） | G8: 本府省において主に政策立案に従事する（従事することが想定される）新規採用職員、3年目係員、係長、課長補佐及び課長級以上の各階層の職員を対象として、省庁間横断の研修を行うことにより、国民全体の奉仕者としての使命感の徹底、職員の能力及び資質の向上を図るとともに、研修員間の相互理解・信頼関係を醸成し、セクショナリズムの弊害の排除に資する。
A9: 事業概要 （5行程度以内。別添可） | G9: 新規採用者から課長級以上の職員まで省庁間横断の階層別研修を合宿又は通勤方式により3日間～5週間で実施。研修カリキュラムは、公務員倫理や行政の在り方など国民全体の奉仕者としての使命と職責について考える科目、政策課題研究などの公共政策の在り方を多角的に検証し考える科目、リーダーシップやマネジメントなど公正な行政運営について学ぶ科目で構成し、研修員相互のグループ討議や意見交換などを重視。
A10: 実施方法 | G10: 直接実施
A11: 予算額・ 執行額 （単位:百万円） | P11: =W11-1 -> 26 | W11: =AD11-1 -> 27 | AD11: =AK11-1 -> 28 | AK11: =A2 -> 29 | AR11: =AK11+1 -> 30
G12: 予算の状況 | I12: 当初予算 | P12: 125 | W12: 121 | AD12: 121 | AK12: 121 | AR12: 122
I13: 補正予算 | P13: 0 | W13: 0 | AD13: 0
I14: 前年度から繰越し | P14: 0 | W14: 0 | AD14: 0 | AK14: 0
I15: 翌年度へ繰越し | P15: 0 | W15: 0 | AD15: 0
I16: 予備費等 | P16: 0 | W16: 0 | AD16: 0
I17: 計 | P17: =SUM(P12:V16) -> 125 | W17: =SUM(W12:AC16) -> 121 | AD17: =SUM(AD12:AJ16) -> 121 | AK17: =SUM(AK12:AQ16) -> 121 | AR17: =SUM(AR12:AX16) -> 122
G18: 執行額 | P18: 109 | W18: 103 | AD18: 109
G19: 執行率（％） | P19: =IF(P17=0, "-", P18/P17) -> 0.872 | W19: =IF(W17=0, "-", W18/W17) -> 0.8512396694 | AD19: =IF(AD17=0, "-", AD18/AD17) -> 0.9008264463
G20: 当初予算＋補正予算に対する執行額の割合（％） | P20: =IF(P18=0, "-", P18/P17) -> 0.872 | W20: =IF(W18=0, "-", W18/W17) -> 0.8512396694 | AD20: =IF(AD18=0, "-", AD18/AD17) -> 0.9008264463
A21: 平成29・30年度 予算内訳 （単位：百万円） | G21: 歳出予算日 | P21: =AK11 -> 29 | W21: =P21+1 -> 30 | AD21: 主な増減理由
G22: 職員旅費 | P22: 82.3 | W22: 82.2 | AD22: （職員旅費） 研修実施の実態を踏まえた減 （研修所庁費） 外部施設借料の単価改定による増
G23: 研修所庁費 | P23: 20.2 | W23: 20.6
G24: 諸謝金 | P24: 17.6 | W24: 17.6
G25: 講師等旅費 | P25: 1.3 | W25: 1.3
G27: その他 | P27: =P28-SUM(P22:V26) -> -0.4 | W27: =W28-SUM(W22:AC26) -> 0.3
G28: 計 | P28: =AK12 -> 121 | W28: =AR12 -> 122
A29: 成果目標及び 成果実績 （アウトカム） | G29: 定量的な成果目標 | P29: 成果指標 | AB29: 単位 | AE29: =AI29-1 -> 26 | AI29: =AM29-1 -> 27 | AM29: =P21-1 -> 28 | AQ29: 中間目標 | AU29: 目標最終年度
AS30: 年度 | AU30: - | AW30: 年度
G31: 研修を有意義であったとした者の割合を95％以上にする。 | P31: 研修受講者個人に対するアンケートを基に行政研修ごとに算出した割合の平均値 | Y31: 成果実績 | AB31: ％ | AE31: 98.7 | AI31: 98.3 | AM31: 97.3
Y32: 目標値 | AB32: - | AE32: - | AI32: - | AM32: - | AU32: 95
Y33: 達成度 | AB33: ％ | AE33: =AE31/$AU$32*100 -> 103.8947368 | AI33: =AI31/$AU$32*100 -> 103.4736842 | AM33: =AM31/$AU$32*100 -> 102.4210526
A34: 横断的な施策に係る成果目標及び成果実績 （アウトカム） | H34: 定量的な成果目標 | P34: 成果指標 | AB34: 単位 | AE34: 25年度 | AI34: 26年度 | AM34: 27年度 | AQ34: 中間目標 | AU34: 目標最終年度
AS35: 年度 | AW35: 年度
G36: 目標・指標 | Y36: 成果実績
Y37: 目標値
Y38: 達成度 | AB38: ％
A39: ●● | E39: 関係 | G39: 算出方法
A40: 根拠として用いた 統計・データ名 （出典） | G40: －
A41: 成果目標及び成果実績（アウトカム）欄についてさらに記載が必要な場合はチェックの上【別紙１】に記載
A42: 定量的な成果目標の設定が困難な場合 | B42: 定量的な目標が設定できない理由及び定性的な成果目標 | G42: 定量的な目標が設定できない理由 | AB42: 定性的な成果目標と26～28年度の達成状況・実績
B47: 事業の妥当性を検証するための代替的な達成目標及び実績 | G47: 代替目標 | P47: 代替指標 | AB47: 単位 | AE47: =AE29 -> 26 | AI47: =AI29 -> 27 | AM47: =AM29 -> 28 | AQ47: 中間目標 | AU47: 目標最終年度
AS48: 年度 | AW48: 年度
Y49: 実績
Y50: 目標値
Y51: 達成度 | AB51: ％
A52: 活動指標及び 活動実績 （アウトプット） | G52: 活動指標 | AB52: 単位 | AE52: =AE47 -> 26 | AI52: =AI47 -> 27 | AM52: =AM47 -> 28 | AQ52: =AM52+1 -> 29 | AU52: =AQ52+1 -> 30
G53: 研修実施回数及び修了者数 | Y53: 活動実績 | AB53: コース(人) | AE53: 45(3,383) | AI53: 44(3,160) | AM53: 43(3,388) | AZ53: 43(3,388)
Y54: 当初見込み | AB54: コース | AE54: 44 | AI54: 44 | AM54: 44 | AQ54: 43
A55: 単位当たり コスト | G55: 算出根拠 | AB55: 単位 | AE55: =AE52 -> 26 | AI55: =AI52 -> 27 | AM55: =AM52 -> 28 | AQ55: =AQ52 -> 29
G56: 執行額／研修受講者数 | Y56: 単位当たり コスト | AB56: 円 | AE56: 32220 | AI56: 32595 | AM56: 32172
Y57: 計算式 | AB57: 百万円/人 | AE57: 109/3,383 | AI57: 103/3,160 | AM57: 109/3,388 | AZ57: 109百万/3,388
A58: 政策評価、経済・財政再生アクション・プログラムとの関係 | C58: 政策評価 | E58: 政策
E59: 施策
E60: 測定指標 | G60: 定量的指標 | AB60: 単位 | AE60: 25年度 | AI60: 26年度 | AM60: 27年度 | AQ60: 中間目標 | AU60: 目標年度
AS61: 年度 | AW61: 年度
Y62: 実績値
Y63: 目標値
G64: 定性的指標 | Y64: 目標 | AE64: 施策の進捗状況（目標）
AB65: 目標年度
AE68: 施策の進捗状況（実績）
E71: 本事業の成果と上位施策・測定指標との関係
C74: 経済・財政再生 アクション・プログラム | E74: 改革項目 | G74: 分野：
E75: KPI (第一階層） | G75: ＫＰＩ （第一階層） | AB75: 単位 | AE75: 計画開始時 | AI75: 27年度 | AM75: 28年度 | AQ75: 中間目標 | AU75: 目標最終年度
AG76: 年度 | AS76: 年度 | AW76: 年度
Y77: 成果実績
Y78: 目標値
Y79: 達成度 | AB79: ％
E80: KPI (第二階層） | G80: ＫＰＩ （第二階層） | AB80: 単位 | AE80: 計画開始時 | AI80: 27年度 | AM80: 28年度 | AQ80: 中間目標 | AU80: 目標最終年度
AG81: 年度 | AS81: 年度 | AW81: 年度
Y82: 成果実績
Y83: 目標値
Y84: 達成度 | AB84: ％
E85: 本事業の成果と改革項目・KPIとの関係
A88: 事業所管部局による点検・改善
C89: 項 目 | AD89: 評 価 | AG89: 評価に関する説明
A90: 国費投入の必要性 | C90: 事業の目的は国民や社会のニーズを的確に反映しているか。 | AD90: ○ | AG90: 府省庁等の垣根を越えて全体の奉仕者としての公務員に必要な資質や政策立案能力を涵養していく上では、中立公正な中央人事行政機関である人事院が合同研修を実施することに意義がある。
C91: 地方自治体、民間等に委ねることができない事業なのか。 | AD91: ○
C92: 政策目的の達成手段として必要かつ適切な事業か。政策体系の中で優先度の高い事業か。 | AD92: ○
A93: 事業の効率性 | C93: 競争性が確保されているなど支出先の選定は妥当か。 | AD93: ○ | AG93: 予算執行の透明性を高めるべく公募を行っているものの、古典を教材とする思索型プログラムという特殊な手法の研修であるため、一者応札となった支出がある。また、合同初任研修については、約800人程度の宿泊施設、研修実施施設、食堂等が同一敷地内に設置されていないと、研修実施に支障が生ずるが、オリセンはこの条件を満たしていること、韓国派遣研修については、韓国の政府に実施委託費として支払うことから、競争性のない随意契約となったものである。
E94: 一般競争入札、総合評価入札又は随意契約（企画競争）による支出のうち、一者応札又は一者応募となったものはないか。 | AD94: 有
E95: 競争性のない随意契約となったものはないか。 | AD95: 有
C96: 受益者との負担関係は妥当であるか。 | AD96: ○ | AG96: 研修施設のキャパシティを最大限に活かしてより多くの研修コースを効率的に実施できるよう年間計画を策定するとともに、研修効果が最大限図られるよう合理的なカリキュラムを構成して随時見直しを行うなど、効率的に事業運営を行っている。
C97: 単位当たりコスト等の水準は妥当か。 | AD97: ○
C98: 資金の流れの中間段階での支出は合理的なものとなっているか。 | AD98: ‐
C99: 費目・使途が事業目的に即し真に必要なものに限定されているか。 | AD99: ○
C100: 不用率が大きい場合、その理由は妥当か。（理由を右に記載） | AD100: ‐
C101: 繰越額が大きい場合、その理由は妥当か。（理由を右に記載） | AD101: ‐
C102: その他コスト削減や効率化に向けた工夫は行われているか。 | AD102: ○
A103: 事業の有効性 | C103: 成果実績は成果目標に見合ったものとなっているか。 | AD103: ○ | AG103: 公務員研修所及び国家公務員研修センターを有効に活用し、各府省のニーズを随時把握するとともに、各府省からの協力を得て効果的に研修を実施できており、研修受講者アンケートによる研修効果についても達成できていると考える。
C104: 事業実施に当たって他の手段・方法等が考えられる場合、それと比較してより効果的あるいは低コストで実施できているか。 | AD104: ○
C105: 活動実績は見込みに見合ったものであるか。 | AD105: ○
C106: 整備された施設や成果物は十分に活用されているか。 | AD106: ○
A107: 関連事業 | C107: 関連する事業がある場合、他部局・他府省等と適切な役割分担を行っているか。（役割分担の具体的な内容を各事業の右に記載） | AD107: ○ | AG107: 国家公務員法は、国家公務員に対する研修は、人事院、内閣人事局及び各府省で行う旨規定しており、人事院は国民全体の奉仕者としての使命の自覚及び多角的な視点等を有する職員の育成等のための研修を、内閣人事局は内閣の重要施策の理解を深めることを通じた施策の統一性の確保のための研修を、各府省はその所掌事務に係る知識及び技術の付与に必要な研修をそれぞれ行っている。
C108: 所管府省・部局名 | P108: 事業番号 | T108: 事業名
A114: 点検・改善結果 | C114: 点検結果 | G114: 事業目的に照らし、計画どおりに実施している。謝金については、民間における謝金水準より相当低く、また、研修所が都内から離れているにもかかわらず、各界に優れた講師を確保しており、高い研修効果が得られていると考える。１人当たりの研修費用としても低い価格に抑えられており、費用対効果を考えても十分な効果が得られていると考える。研修内容については、その時々の情勢や各府省のニーズに応じ研修内容を充実させており、各研修とも研修受講者から高い評価を得ている。
C115: 改善の 方向性 | G115: 今後もより効果的な研修の実施方法を模索し、さらに効率的に予算を執行していくこととする。
A116: 外部有識者の所見
A117: ※ 外部有識者による点検の対象外の事業
A118: 行政事業レビュー・調達改善推進チームの所見
A119: 事業内容の 一部改善 | F119: 幹部行政官セミナー（幹部職員の意識改革を図る取組）の職員旅費について、研修の実施の実態に即したものとなるよう必要額の見直しを行い、その結果を平成30年度予算概算要求に反映させること。
A120: 所見を踏まえた改善点/概算要求における反映状況
A121: 縮減 | F121: 幹部行政官セミナー（幹部職員の意識改革を図る取組）の職員旅費について、研修の実施の実態に即したものとなるよう必要額の見直しを行うことで要求額を減額する。
A122: 備考
A124: 関連する過去のレビューシートの事業番号
A125: =Q125-1 -> 22 | G125: － | Q125: =AG125-1 -> 23 | W125: － | AG125: =A126-1 -> 24 | AM125: －
A126: =Q126-1 -> 25 | G126: 4 | Q126: =AG126-1 -> 26 | W126: 4 | AG126: =A127-1 -> 27 | AM126: 4
A127: =AM55 -> 28 | G127: 4
A128: 資金の流れ （資金の受け取り先が何を行っているかについて補足する） (単位：百万円) | G128: =A127 -> 28
AA130: 【随意契約（少額）】
AA131: A.明治堂印刷(株)ほか 0.5百万円
AA132: (研修実施結果報告書等に係る印刷製本費）
AA133: 【随意契約（公募）等】
I134: 人事院 109百万円 | AA134: B.(一社)日本アスペン研究所ほか 9.8百万円
AA135: (現場研修等の外部委託費)
AA136: 【随意契約（その他）等】
AA137: C.(独)国立青少年教育振興機構ほか 5.6百万円
AA138: (研修実施に係る借料等）
AA139: 【諸謝金】
AA140: D.個人 17.5百万円
AA141: (研修実施に係る講師等謝金）
AA143: E.事務費 75.4百万円
AA144: （研修実施に係る備品費、消耗品費、会議費、通信運搬費及び研修員の旅費等）
A167: 費目・使途 （「資金の流れ」においてブロックごとに最大の金額が支出されている者について記載する。費目と使途の双方で実情が分かるように記載） | G167: A. | AC167: B.（一社）日本アスペン研究所
G168: 費 目 | L168: 使 途 | Y168: 金 額 (百万円） | AC168: 費 目 | AH168: 使 途 | AU168: 金 額 (百万円）
AC169: 雑役務費 | AH169: 幹部行政官セミナー実施委託費 | AU169: 2.9
G179: 計 | Y179: =SUM(Y169:AB178) -> 0 | AC179: 計 | AU179: =SUM(AU169:AX178) -> 2.9
G180: C.（独）国立青少年教育振興機構 | AC180: D.個人A
G181: 費 目 | L181: 使 途 | Y181: 金 額 (百万円） | AC181: 費 目 | AH181: 使 途 | AU181: 金 額 (百万円）
G182: 借料及び損料 | L182: 合同初任研修の外部施設借用 | Y182: 3.3 | AC182: 諸謝金 | AH182: 初任行政研修ほか講師 | AU182: 1.01
G192: 計 | Y192: =SUM(Y182:AB191) -> 3.3 | AC192: 計 | AU192: =SUM(AU182:AX191) -> 1.01
G193: E. | AC193: F.
G194: 費 目 | L194: 使 途 | Y194: 金 額 (百万円） | AC194: 費 目 | AH194: 使 途 | AU194: 金 額 (百万円）
G205: 計 | AC205: 計 | AU205: =SUM(AU195:AX204) -> 0
G206: G. | AC206: H.
G207: 費 目 | L207: 使 途 | Y207: 金 額 (百万円） | AC207: 費 目 | AH207: 使 途 | AU207: 金 額 (百万円）
G218: 計 | Y218: =SUM(Y208:AB217) -> 0 | AC218: 計 | AU218: =SUM(AU208:AX217) -> 0
A219: 費目・使途欄についてさらに記載が必要な場合はチェックの上【別紙２】に記載
B222: 支出先上位１０者リスト
B223: A.
C224: 支 出 先 | J224: 法 人 番 号 | P224: 業 務 概 要 | Y224: 支 出 額 （百万円） | AC224: 契約方式 | AH224: 入札者数 （応募者数） | AL224: 落札率 | AP224: 一者応札・一者応募又は 競争性のない随意契約となった 理由及び改善策 （支出額10億円以上）
A225: 1 | B225: 1 | C225: 明治堂印刷(株) | J225: 2030001027355 | P225: 平成29年度初任行政研修ガイドブックほか | Y225: 0.3 | AC225: 随意契約 （少額） | AZ225: 随意契約 （少額）
A226: 2 | B226: 1 | C226: 東洋印刷(株) | J226: 3130001021789 | P226: 平成28年度初任行政研修実施結果報告書 | Y226: 0.2 | AC226: 随意契約 （少額）
A227: 3 | B227: 1
A228: 4 | B228: 1
A229: 5 | B229: 1
A230: 6 | B230: 1
A231: 7 | B231: 1
A232: 8 | B232: 1
A233: 9 | B233: 1
A234: 10 | B234: 1
B236: B.
C237: 支 出 先 | J237: 法 人 番 号 | P237: 業 務 概 要 | Y237: 支 出 額 （百万円） | AC237: 契約方式 | AH237: 入札者数 （応募者数） | AL237: 落札率 | AP237: 一者応札・一者応募又は 競争性のない随意契約となった 理由及び改善策 （支出額10億円以上）
A238: 1 | B238: 1 | C238: （一社）日本アスペン研究所 | J238: 6010405008144 | P238: 幹部行政官セミナー実施委託費 | Y238: 2.9 | AC238: 随意契約 （公募） | AZ238: 随意契約 （公募）
A239: 2 | B239: 1 | C239: 大韓民国国家公務員人材開発院 | P239: 行政研修（課長補佐級）韓国派遣研修実施委託費 | Y239: 1.5 | AC239: 随意契約 （その他）
A240: 3 | B240: 1 | C240: 特定非営利活動法人エティック | J240: 8011005001090 | P240: 初任行政研修現場訪問実施委託費 | Y240: 1 | AC240: 随意契約 （少額）
A241: 4 | B241: 1 | C241: K/Hコミュニケーションズ(株) | J241: 6011801019494 | P241: 行政研修係員級特別課程英語研修実施委託費ほか | Y241: 0.9 | AC241: 随意契約 （少額）
A242: 5 | B242: 1 | C242: （社）ＭＯＲＩＵＭＩＵＳ | J242: 3010905002319 | P242: 初任行政研修被災地派遣実施委託費 | Y242: 0.9 | AC242: 随意契約 （少額）
A243: 6 | B243: 1 | C243: （株）総合防災ソリューション | J243: 4010001013707 | P243: 初任行政研修「防災・危機管理演習」実施委託費 | Y243: 0.7 | AC243: 随意契約 （少額）
A244: 7 | B244: 1 | C244: （一社）あすびと福島 | J244: 7010405010693 | P244: 初任行政研修被災地派遣実施委託費 | Y244: 0.5 | AC244: 随意契約 （少額）
A245: 8 | B245: 1 | C245: 加留部貴行事務所ＡＮ－ＢＡＩ | P245: ３年目フォローアップ研修「ファシリテーション」研修実施委託費 | Y245: 0.4 | AC245: 随意契約 （少額）
A246: 9 | B246: 1 | C246: （一社）国際教育振興会日米会話学院 | J246: 4011105005326 | P246: 行政研修係員級特別課程英語研修実施委託費 | Y246: 0.3 | AC246: 随意契約 （少額）
A247: 10 | B247: 1 | C247: (株)会議録研究所 | J247: 6011101004370 | P247: 初任行政研修講義録反訳ほか | Y247: 0.2 | AC247: 随意契約 （少額）
B249: C.
C250: 支 出 先 | J250: 法 人 番 号 | P250: 業 務 概 要 | Y250: 支 出 額 （百万円） | AC250: 契約方式 | AH250: 入札者数 （応募者数） | AL250: 落札率 | AP250: 一者応札・一者応募又は 競争性のない随意契約となった 理由及び改善策 （支出額10億円以上）
A251: 1 | B251: 1 | C251: （独）国立青少年教育振興機構 | J251: 8011005001124 | P251: 合同初任研修の外部施設借用 | Y251: 3.3 | AC251: 随意契約 （その他）
A252: 2 | B252: 1 | C252: （有）江戸川トラベル | J252: 4011702001586 | P252: 初任行政研修企業等訪問にかかるバス借り上げ | Y252: 0.5 | AC252: 随意契約 （少額）
A253: 3 | B253: 1 | C253: （株）和光観光トラベル | J253: 6030001046918 | P253: 初任行政研修企業等訪問にかかるバス借り上げ | Y253: 0.4 | AC253: 随意契約 （少額）
A254: 4 | B254: 1 | C254: とよま観光バス（株） | J254: 4370401000087 | P254: 行政研修課長級現場訪問コースにかかるバス借り上げ | Y254: 0.3 | AC254: 随意契約 （少額）
A255: 5 | B255: 1 | C255: （株）細村 | J255: 3030001055558 | P255: 初任行政研修コピー機賃貸借料 | Y255: 0.2 | AC255: 随意契約 （少額）
A256: 6 | B256: 1 | C256: 丸大トラベルサービス（株） | J256: 7030001027280 | P256: 初任行政研修企業等訪問にかかるバス借り上げほか | Y256: 0.2 | AC256: 随意契約 （少額）
A257: 7 | B257: 1 | C257: （株）アイシー観光 | J257: 8210001000037 | P257: 行政研修課長補佐級リーダーシップ研修にかかるバス借り上げ | Y257: 0.2 | AC257: 随意契約 （少額）
A258: 8 | B258: 1 | C258: （株）オリエンタル観光 | J258: 5020001070647 | P258: 行政研修係長級特別課程にかかるバス借り上げ | Y258: 0.1 | AC258: 随意契約 （少額）
A259: 9 | B259: 1 | C259: (株)エンターオン | J259: 1010501030923 | P259: PC等短期賃貸借代 | Y259: 0.1 | AC259: 随意契約 （少額）
A260: 10 | B260: 1 | C260: 入間中央交通（株） | J260: 5030001026763 | P260: 行政研修係員級特別課程にかかるバス借り上げ | Y260: 0.1 | AC260: 随意契約 （少額）
B262: D.
C263: 支 出 先 | J263: 法 人 番 号 | P263: 業 務 概 要 | Y263: 支 出 額 （百万円） | AC263: 契約方式 | AH263: 入札者数 （応募者数） | AL263: 落札率 | AP263: 一者応札・一者応募又は 競争性のない随意契約となった 理由及び改善策 （支出額10億円以上）
A264: 1 | B264: 1 | C264: 個人A | P264: 初任行政研修ほか講師 | Y264: 1 | AC264: （諸謝金）
A265: 2 | B265: 1 | C265: 個人B | P265: 初任行政研修ほか講師 | Y265: 0.5 | AC265: （諸謝金）
A266: 3 | B266: 1 | C266: 個人C | P266: 初任行政研修ほか講師 | Y266: 0.5 | AC266: （諸謝金）
A267: 4 | B267: 1 | C267: 個人D | P267: 初任行政研修ほか講師 | Y267: 0.4 | AC267: （諸謝金）
A268: 5 | B268: 1 | C268: 個人E | P268: 初任行政研修ほか講師 | Y268: 0.3 | AC268: （諸謝金）
A269: 6 | B269: 1 | C269: 個人F | P269: 初任行政研修ほか講師 | Y269: 0.2 | AC269: （諸謝金）
A270: 7 | B270: 1 | C270: 個人G | P270: 初任行政研修ほか講師 | Y270: 0.2 | AC270: （諸謝金）
A271: 8 | B271: 1 | C271: 個人H | P271: 初任行政研修ほか講師 | Y271: 0.2 | AC271: （諸謝金）
A272: 9 | B272: 1 | C272: 個人Ｉ | P272: 初任行政研修ほか講師 | Y272: 0.2 | AC272: （諸謝金）
A273: 10 | B273: 1 | C273: 個人J | P273: 初任行政研修ほか講師 | Y273: 0.2 | AC273: （諸謝金）
B275: E.
C276: 支 出 先 | J276: 法 人 番 号 | P276: 業 務 概 要 | Y276: 支 出 額 （百万円） | AC276: 契約方式 | AH276: 入札者数 （応募者数） | AL276: 落札率 | AP276: 一者応札・一者応募又は 競争性のない随意契約となった 理由及び改善策 （支出額10億円以上）
A277: 1 | B277: 1
A278: 2 | B278: 1
A279: 3 | B279: 1
A280: 4 | B280: 1
A281: 5 | B281: 1
A282: 6 | B282: 1
A283: 7 | B283: 1
A284: 8 | B284: 1
A285: 9 | B285: 1
A286: 10 | B286: 1
B288: F.
... 48 more rows

Sheet 入力規則等 (hidden)
A1: 主要施策名 | B1: 該当の有無 | F1: 会計区分 | G1: 該当の有無 | K1: 主要経費名 | L1: 該当の有無 | P1: 実施方法 | Q1: 該当の有無 | U1: 事業番号 | W1: 開始年度 | Y1: 終了（予定）年度 | AA1: 行政事業レビュー推進チームの所見 | AC1: 所見を踏まえた改善点/概算要求における反映状況 | AE1: 契約方式 | AG1: 一体改革分野 | AI1: ブロック名
A2: 医療分野の研究開発関連 | C2: =IF(B2="","",A2) ->  | D2: =IF(C2="","",IF(D1<>"",CONCATENATE(D1,"、",C2),C2)) ->  | F2: 一般会計 | H2: =IF(G2="","",F2) ->  | I2: =IF(H2="","",IF(I1<>"",CONCATENATE(I1,"、",H2),H2)) ->  | K2: 社会保障 | M2: =IF(L2="","",K2) ->  | N2: =IF(M2="","",IF(N1<>"",CONCATENATE(N1,"、",M2),M2)) ->  | P2: 直接実施 | R2: =IF(Q2="","",P2) ->  | S2: =IF(R2="","",IF(S1<>"",CONCATENATE(S1,"、",R2),R2)) ->  | Y2: 平成２５年度 | AA2: 廃止 | AC2: 廃止 | AE2: 一般競争契約 （最低価格） | AG2: 社会保障 | AI2: A
A3: 宇宙開発利用 | C3: =IF(B3="","",A3) ->  | D3: =IF(C3="",D2,IF(D2<>"",CONCATENATE(D2,"、",C3),C3)) ->  | F3: 交付税及び譲与税配付金特別会計 | H3: =IF(G3="","",F3) ->  | I3: =IF(H3="",I2,IF(I2<>"",CONCATENATE(I2,"、",H3),H3)) ->  | K3: 文教及び科学振興 | M3: =IF(L3="","",K3) ->  | N3: =IF(M3="",N2,IF(N2<>"",CONCATENATE(N2,"、",M3),M3)) ->  | P3: 委託・請負 | R3: =IF(Q3="","",P3) ->  | S3: =IF(R3="",S2,IF(S2<>"",CONCATENATE(S2,"、",R3),R3)) ->  | U3: 新28 | W3: 昭和元年度以前 | Y3: 平成２６年度 | AA3: 事業全体の 抜本的な改善 | AC3: 縮減 | AE3: 一般競争契約 （総合評価） | AG3: 社会資本整備等 | AI3: =CHAR(CODE(AI2)+1) -> B
A4: 沖縄振興 | D4: =IF(C4="",D3,IF(D3<>"",CONCATENATE(D3,"、",C4),C4)) ->  | F4: 地震再保険特別会計 | I4: =IF(H4="",I3,IF(I3<>"",CONCATENATE(I3,"、",H4),H4)) ->  | K4: 恩給関係 | N4: =IF(M4="",N3,IF(N3<>"",CONCATENATE(N3,"、",M4),M4)) ->  | P4: 補助 | U4: 新29 | W4: 昭和２年度 | Y4: 平成２７年度 | AA4: 事業内容の 一部改善 | AC4: 執行等改善 | AE4: 指名競争契約 （最低価格） | AG4: 制度・地方行財政 | AI4: =CHAR(CODE(AI3)+1) -> C
A5: 海洋政策 | D5: =IF(C5="",D4,IF(D4<>"",CONCATENATE(D4,"、",C5),C5)) ->  | F5: 国債整理基金特別会計 | K5: 防衛関係 | P5: 負担 | W5: 昭和３年度 | Y5: 平成２８年度 | AA5: 終了予定 | AC5: 予定通り終了 | AE5: 指名競争契約 （総合評価） | AG5: 文教・科学技術 外交・安全保障・防衛等 | AI5: D
A6: 科学技術・イノベーション | D6: =IF(C6="",D5,IF(D5<>"",CONCATENATE(D5,"、",C6),C6)) ->  | F6: 外国為替資金特別会計 | K6: 公共事業 | P6: 交付 | W6: 昭和４年度 | Y6: 平成２９年度 | AA6: 現状通り | AC6: 現状通り | AE6: 随意契約 （企画競争） | AI6: E
A7: 観光立国 | F7: 財政投融資特別会計財政融資資金勘定 | K7: 経済協力 | P7: 貸付 | W7: 昭和５年度 | Y7: 平成３０年度 | AE7: 随意契約 （公募） | AI7: F
A8: 交通安全対策 | F8: 財政投融資特別会計投資勘定 | K8: 中小企業対策 | P8: その他 | W8: 昭和６年度 | Y8: 平成３１年度 | AE8: 随意契約 （少額） | AI8: G
A9: 高齢社会対策 | F9: 財政投融資特別会計特定国有財産整備勘定 | K9: エネルギー対策 | W9: 昭和７年度 | Y9: 平成３２年度 | AE9: 随意契約 （その他） | AI9: H
A10: 国土強靭化施策 | F10: エネルギー対策特別会計エネルギー需給勘定 | K10: 食糧安定供給関係 | P10: =S8 ->  | W10: 昭和８年度 | Y10: 平成３３年度 | AE10: 国庫債務 負担行為等 | AI10: I
A11: 子ども・若者育成支援 | F11: エネルギー対策特別会計電源開発促進勘定 | K11: その他の事項経費 | W11: 昭和９年度 | Y11: 平成３４年度 | AE11: （諸謝金） | AI11: J
A12: 自殺対策 | F12: エネルギー対策特別会計原子力損害賠償支援勘定 | W12: 昭和１０年度 | Y12: 平成３５年度 | AE12: その他 | AI12: K
A13: 障害者施策 | F13: 労働保険特別会計労災勘定 | K13: =N11 ->  | W13: 昭和１１年度 | Y13: 平成３６年度 | AI13: L
A14: 少子化社会対策 | F14: 労働保険特別会計雇用勘定 | W14: 昭和１２年度 | Y14: 平成３７年度 | AI14: M
A15: 食育推進 | F15: 労働保険特別会計徴収勘定 | W15: 昭和１３年度 | Y15: 平成３８年度 | AI15: N
A16: 男女共同参画 | F16: 年金特別会計基礎年金勘定 | W16: 昭和１４年度 | Y16: 平成３９年度 | AI16: O
A17: 地球温暖化対策 | F17: 年金特別会計国民年金勘定 | W17: 昭和１５年度 | Y17: 平成４０年度 | AI17: P
A18: 犯罪被害者等施策 | F18: 年金特別会計厚生年金勘定 | W18: 昭和１６年度 | Y18: 平成４１年度 | AI18: Q
A19: ＩＴ戦略 | F19: 年金特別会計健康勘定 | W19: 昭和１７年度 | Y19: 平成４２年度 | AI19: R
A20: クールジャパン | F20: 年金特別会計子ども・子育て支援勘定 | W20: 昭和１８年度 | Y20: 平成４３年度 | AI20: S
A21: 知的財産 | F21: 年金特別会計業務勘定 | W21: 昭和１９年度 | Y21: 平成４４年度 | AI21: T
A22: 地方創生 | F22: 食料安定供給特別会計農業経営安定勘定 | W22: 昭和２０年度 | Y22: 平成４５年度 | AI22: U
A23: ＯＤＡ | F23: 食料安定供給特別会計食糧管理勘定 | W23: 昭和２１年度 | Y23: 平成４６年度 | AI23: V
A24: 2020年東京オリパラ | F24: 食料安定供給特別会計農業共済再保険勘定 | W24: 昭和２２年度 | Y24: 平成４７年度 | AI24: =CHAR(CODE(AI23)+1) -> W
F25: 食料安定供給特別会計漁船再保険勘定 | W25: 昭和２３年度 | Y25: 平成４８年度 | AI25: X
A26: =D24 ->  | F26: 食料安定供給特別会計漁業共済保険勘定 | W26: 昭和２４年度 | Y26: 平成４９年度 | AI26: Y
F27: 食料安定供給特別会計業務勘定 | W27: 昭和２５年度 | Y27: 平成５０年度 | AI27: =CHAR(CODE(AI26)+1) -> Z
F28: 食料安定供給特別会計国営土地改良事業勘定 | W28: 昭和２６年度 | Y28: 平成５１年度 | AI28: a
F29: 国有林野事業債務管理特別会計 | W29: 昭和２７年度 | Y29: 平成５２年度 | AI29: b
F30: 貿易再保険特別会計 | W30: 昭和２８年度 | Y30: 平成５３年度 | AI30: c
F31: 特許特別会計 | W31: 昭和２９年度 | Y31: 平成５４年度 | AI31: d
F32: 自動車安全特別会計保障勘定 | W32: 昭和３０年度 | Y32: 平成５５年度 | AI32: e
F33: 自動車安全特別会計自動車検査登録勘定 | W33: 昭和３１年度 | Y33: 平成５５年度以降 | AI33: f
F34: 自動車安全特別会計自動車事故対策勘定 | W34: 昭和３２年度 | Y34: 終了予定なし | AI34: g
F35: 自動車安全特別会計空港整備勘定 | W35: 昭和３３年度 | AI35: h
F36: 東日本大震災復興特別会計 | W36: 昭和３４年度 | AI36: i
W37: 昭和３５年度 | AI37: j
W38: 昭和３６年度 | AI38: k
F39: =I37 ->  | W39: 昭和３７年度 | AI39: l
W40: 昭和３８年度 | AI40: m
W41: 昭和３９年度 | AI41: n
W42: 昭和４０年度 | AI42: o
W43: 昭和４１年度 | AI43: p
W44: 昭和４２年度 | AI44: q
W45: 昭和４３年度 | AI45: r
W46: 昭和４４年度 | AI46: s
W47: 昭和４５年度 | AI47: t
W48: 昭和４６年度 | AI48: u
W49: 昭和４７年度 | AI49: v
W50: 昭和４８年度
W51: 昭和４９年度
W52: 昭和５０年度
W53: 昭和５１年度
W54: 昭和５２年度
W55: 昭和５３年度
W56: 昭和５４年度
W57: 昭和５５年度
W58: 昭和５６年度
W59: 昭和５７年度
W60: 昭和５８年度
W61: 昭和５９年度
W62: 昭和６０年度
W63: 昭和６１年度
W64: 昭和６２年度
W65: 昭和６３年度
W66: 平成元年度
W67: 平成２年度
W68: 平成３年度
W69: 平成４年度
W70: 平成５年度
W71: 平成６年度
W72: 平成７年度
W73: 平成８年度
W74: 平成９年度
W75: 平成１０年度
W76: 平成１１年度
W77: 平成１２年度
W78: 平成１３年度
W79: 平成１４年度
W80: 平成１５年度
W81: 平成１６年度
W82: 平成１７年度
W83: 平成１８年度
W84: 平成１９年度
W85: 平成２０年度
W86: 平成２１年度
W87: 平成２２年度
W88: 平成２３年度
W89: 平成２４年度
W90: 平成２５年度
W91: 平成２６年度
W92: 平成２７年度
W93: 平成２８年度
W94: 平成２９年度
W95: 平成３０年度
W122: 新
